Cogmind - Beta 13 @@@ ROGUE MODE // 2024.04.29 @ 01:14:33 Player: Red_Zig Result: Escaped! Performance ------------- Evolutions (9) 4500 Regions Visited (13) 2600 Robots Destroyed (53) 265 Value Destroyed (1745) 1745 Prototype IDs (11) 220 Alien Tech Used (0) 0 Bonus (5109) 5109 TOTAL SCORE: 14439 Bonus ------- High Alert Combat Kills 70 Entered DSFs 1500 Win 3000 Win Speed 539 Cogmind --------- Core Integrity 1399/1600 Matter 192/300 Energy 20/100 System Corruption 3% Temperature Cool (3) Movement Flying (34) Location To Epsilon Eridani Parts ------- > --- POWER (2) -------- (None) > --- PROPULSION (9) --- Nuclear Pulse Array Field Propulsion Array Field Propulsion Array > --- UTILITY (11) ----- Advanced Cryofiber Web Medium Storage Unit Advanced Signal Interpreter Improved Transmission Jammer Advanced ECM Suite Hacking Suite Improved Hacking Suite Improved Hacking Suite Improved Hacking Suite System Shield > --- WEAPON (3) ------- Enhanced Quantum Rifle > --- INVENTORY (10) --- Antimissile System Long-range Missile Launcher Fusion Bomb Launcher Peak State ------------ > --- POWER ------------ Nuclear Core Light Fission Core Quantum Reactor > --- PROPULSION ------- Field Propulsion Array Field Propulsion Array Flightbrick > --- UTILITY ---------- Advanced Cryofiber Web Medium Storage Unit Advanced Sensor Array Advanced Signal Interpreter Improved Targeting Computer Improved Transmission Jammer Hacking Suite Hacking Suite Hacking Suite Improved Hacking Suite Improved Hacking Suite Improved Hacking Suite > --- WEAPON ----------- Powered Cannon > --- INVENTORY -------- Field Propulsion Array High-capacity Matter Pod Advanced ECM Suite Advanced Reaction Control System Antimissile System System Shield Improved Field Recycling Unit Barrage Gun Long-range Missile Launcher [Rating: 149] Favorites ----------- Power Quantum Reactor Engine Light Deuterium Engine Power Core Nuclear Core Reactor Quantum Reactor Propulsion Light Treads Treads Light Treads Wheel Wheel Flight Unit Field Propulsion Array Utility Hacking Suite Device Improved Transmission Jammer Storage Large Storage Unit Processor Signal Interpreter Hackware Hacking Suite Weapon Light Assault Rifle Energy Gun Enhanced Quantum Rifle Energy Cannon Powered Cannon Ballistic Gun Light Assault Rifle Ballistic Cannon Battle Cannon Launcher Grenade Launcher Build | -11 -10 -10 -8 -7 -7 -6 -5 -5 -4 -3 -3 -2 -1 ------- Run | Yrd Mat Sub Mat Fac DSF Fac Fac DSF Fac Res DSF Res Acc Slots Evolved 17 | . . . 4 2 . 2 2 . 2 2 . 2 1 Power 1 | . . . . . . . . . . . . 1 . Propulsion 7 | . . . 2 2 . 2 . . . . . . 1 Utility 8 | . . . 2 . . . 1 . 2 2 . 1 . Weapon 1 | . . . . . . . 1 . . . . . . Parts Attached 95 | 6 6 13 11 2 3 4 6 3 4 5 9 4 19 Power 14 | 1 1 1 1 . . 2 . . 1 . . 3 4 Engine 5 | 1 . 1 1 . . 1 . . . . . . 1 Core 5 | . 1 . . . . 1 . . 1 . . 1 1 Reactor 4 | . . . . . . . . . . . . 2 2 Propulsion 22 | 2 . 3 2 1 . 2 4 3 . . 3 . 2 Treads 3 | . . 3 . . . . . . . . . . . Leg . | . . . . . . . . . . . . . . Wheel 5 | 2 . . . . . 1 2 . . . . . . Hover . | . . . . . . . . . . . . . . Flight 14 | . . . 2 1 . 1 2 3 . . 3 . 2 Utility 28 | 1 2 . 2 1 3 . 2 . 3 5 5 1 3 Device 13 | . . . . . . . 1 . 3 5 2 . 2 Storage 3 | 1 1 . 1 . . . . . . . . . . Processor 3 | . 1 . . 1 . . 1 . . . . . . Hackware 9 | . . . 1 . 3 . . . . . 3 1 1 Protection . | . . . . . . . . . . . . . . Artifact . | . . . . . . . . . . . . . . Weapon 31 | 2 3 9 6 . . . . . . . 1 . 10 Energy Gun 3 | . . . . . . . . . . . . . 3 Energy Cannon 1 | . . . 1 . . . . . . . . . . Ballistic Gun 10 | 2 2 4 2 . . . . . . . . . . Ballistic Cannon 3 | . . 2 1 . . . . . . . . . . Launcher 14 | . 1 3 2 . . . . . . . 1 . 7 Special Weapon . | . . . . . . . . . . . . . . Impact Weapon . | . . . . . . . . . . . . . . Slashing Weapon . | . . . . . . . . . . . . . . Piercing Weapon . | . . . . . . . . . . . . . . Special Melee Weapon . | . . . . . . . . . . . . . . Unidentified Prototypes 1 | . . . . . . . 1 . . . . . . Parts Lost 21 | . . 1 5 . . 1 . 2 . . 1 2 9 Power 8 | . . 1 1 . . . . 1 . . . 1 4 Propulsion 6 | . . . 2 . . . . 1 . . 1 . 2 Utility 4 | . . . . . . 1 . . . . . . 3 Weapon 3 | . . . 2 . . . . . . . . 1 . Highest Loss Streak 4 | . . 1 2 . . 1 . 2 . . 1 2 4 To Critical Strikes . | . . . . . . . . . . . . . . Average Slot Usage (%) 79 | . 98 90 49 41 61 65 69 70 76 73 77 69 64 Engine 1 | . 2 . 6 5 5 1 5 3 . . . . . Core 4 | . 11 4 . . . 5 5 5 9 8 8 3 . Treads 10 | . . 25 5 . . . . . . . . . . Wheel 5 | . 28 2 . . . 4 4 3 . . . . . Flight 5 | . . . 4 8 11 13 15 18 22 20 17 11 11 Device 3 | . . . . . . . 4 5 12 15 11 11 11 Storage 9 | . 14 14 8 5 5 5 5 5 4 4 4 3 3 Processor 10 | . 13 14 8 8 11 10 10 10 9 8 8 7 5 Hackware 7 | . . . . 5 20 17 15 15 13 12 19 22 22 Energy Cannon 1 | . . . . 5 5 5 5 5 4 4 4 2 . Ballistic Gun 13 | . 27 24 6 . . . . . . . . . . Ballistic Cannon 1 | . . 2 6 . . . . . . . . . . Naked Turns . | . . . . . . . . . . . . . . Heaviest Build 55 | 11 29 31 44 24 24 31 32 32 38 51 51 53 55 Greatest Support 58 | 20 20 40 40 28 28 32 38 51 51 51 54 54 58 Greatest Overweight (x) 10 | . 1 1 10 . . . . . . . . . 1 Average Overweight (x) . | . . . . . . . . . . . . . . Largest Inventory Capacity 15 | 8 15 15 15 10 10 10 10 10 10 10 10 10 10 Average Capacity 12 | 6 14 15 14 10 10 10 10 10 10 10 10 10 10 Most Carried 15 | 6 11 15 15 10 10 10 10 10 9 10 10 10 10 Average Carried 11 | 4 9 14 13 9 9 9 9 9 8 9 9 9 9 Final Capacity 15 | 8 15 15 10 10 10 10 10 10 10 10 10 10 10 Final Carried 15 | 6 11 15 9 9 10 9 10 10 9 9 10 10 3 Class Distribution -------------------- 63% | Mutant 17% | Wizard-Mutant 10% | Hacker-Mutant 6% | Hacker-Sprinter Dominant Class ---------------- Mutant | -10/Materials Mutant | -10/Subcaves Mutant | -8/Materials Mutant | -7/Factory Hacker-Mutant | -7/DSF Hacker-Mutant | -6/Factory Hacker-Mutant | -5/Factory Hacker-Mutant | -5/DSF Hacker-Sprinter | -4/Factory Hacker-Sprinter | -3/Research Hacker-Sprinter | -3/DSF Wizard-Mutant | -2/Research Wizard-Mutant | -1/Access Resources | -11 -10 -10 -8 -7 -7 -6 -5 -5 -4 -3 -3 -2 -1 ----------- Run | Yrd Mat Sub Mat Fac DSF Fac Fac DSF Fac Res DSF Res Acc Matter Collected 2145 | 276 142 781 81 . 7 116 . . 200 150 60 100 232 Remotely . | . . . . . . . . . . . . . . Salvage Created 1361 | 89 269 397 294 . . 169 . . . . 30 . 113 Parts 95 | 2 16 29 25 . . 11 . . . . 3 . 9 Haulers Intercepted 2 | . 1 . . . . 1 . . . . . . . Recyclers Shooed . | . . . . . . . . . . . . . . Parts Field Recycled 7 | . . . . . . . . . . 7 . . . Retrieved Matter 56 | . . . . . . . . . . 56 . . . Parts Self-Destructed 18 | . . 18 . . . . . . . . . . . Prevented . | . . . . . . . . . . . . . . Kills | -11 -10 -10 -8 -7 -7 -6 -5 -5 -4 -3 -3 -2 -1 ------- Run | Yrd Mat Sub Mat Fac DSF Fac Fac DSF Fac Res DSF Res Acc Combat Hostiles Destroyed 44 | . 7 12 11 . . 2 . . . . 3 . 9 Guns 9 | . 4 4 1 . . . . . . . . . . Cannons 7 | . . 3 2 . . 2 . . . . . . . AOE 28 | . 3 5 8 . . . . . . . 3 . 9 Classes Destroyed 12 | 1 5 3 1 . . 1 . . . . 1 . . Worker 2 | . 1 . . . . . . . . . . . 1 Hauler 2 | . 1 . . . . 1 . . . . . . . Recycler 1 | 1 . . . . . . . . . . . . . Operator 1 | . . . 1 . . . . . . . . . . Watcher 3 | . 1 . 1 . . . . . . . . . 1 Swarmer 19 | . 3 2 4 . . 1 . . . . . . 9 Cutter 3 | . . . . . . . . . . . 3 . . Grunt 9 | . 4 . 5 . . . . . . . . . . Sentry 3 | . . 1 2 . . . . . . . . . . Programmer 1 | . . . . . . 1 . . . . . . . Cobbler 1 | . . 1 . . . . . . . . . . . Subdweller 9 | . . 9 . . . . . . . . . . . Best Kill Streak 8 | 1 3 3 8 . . 2 . . . . 3 . 6 Combat Bots Only 7 | . 3 3 7 . . 2 . . . . 3 . 6 Max Kills in Single Turn 6 | 1 2 2 4 . . 1 . . . . 3 . 6 Gunslinging . | . . . . . . . . . . . . . . Exploded 6 | . 2 2 3 . . . . . . . 3 . 6 Melee . | . . . . . . . . . . . . . . Uniques/NPCs Destroyed . | . . . . . . . . . . . . . . Combat | -11 -10 -10 -8 -7 -7 -6 -5 -5 -4 -3 -3 -2 -1 -------- Run | Yrd Mat Sub Mat Fac DSF Fac Fac DSF Fac Res DSF Res Acc Hostile Shots Fired 417 | . 23 30 80 . 5 59 . 11 . 2 5 25 177 Missed 194 | . 5 12 31 . 2 28 . 6 . 1 3 13 93 Damage Taken 4769 | . 222 388 759 . 88 438 . 316 . 18 177 261 2102 Core 603 | . 46 50 89 . 46 21 . 74 . . . 76 201 Absorbed by Shields . | . . . . . . . . . . . . . . Core Remaining (%) 90 | 100 . 61 83 . 93 97 . 92 100 . 100 94 87 Volleys Fired 137 | 4 35 33 29 . . 11 . . . . 3 5 17 Largest 2 | 2 2 2 2 . . 1 . . . . 2 1 1 Hottest 163 | 40 40 69 69 . . 40 . . . . 163 40 65 Shots Fired 225 | 8 66 61 53 . . 11 . . . . 4 5 17 Gun 149 | 8 62 48 24 . . . . . . . . . 7 Cannon 51 | . . 8 25 . . 11 . . . . 2 5 . Launcher 25 | . 4 5 4 . . . . . . . 2 . 10 Special . | . . . . . . . . . . . . . . Kinetic 173 | 8 62 56 47 . . . . . . . . . . Thermal 27 | . . . 2 . . 11 . . . . 2 5 7 Explosive 25 | . 4 5 4 . . . . . . . 2 . 10 Electromagnetic . | . . . . . . . . . . . . . . Robot Hit Streak 22 | 4 7 22 14 . . 2 . . . . 1 . 4 Robot Miss Streak 5 | 2 5 2 2 . . 2 . . . . 2 . 2 Penetration Max . | . . . . . . . . . . . . . . Secondary Targets . | . . . . . . . . . . . . . . Shots Hit Robots 134 | 5 34 47 38 . . 4 . . . . 1 . 5 Core Hits 92 | 2 19 24 18 . . 3 . . . . 3 . 23 Critical Kills . | . . . . . . . . . . . . . . Critical Parts Destroyed . | . . . . . . . . . . . . . . Critical Strikes 1 | . . 1 . . . . . . . . . . . Destroy 1 | . . 1 . . . . . . . . . . . Melee Attacks . | . . . . . . . . . . . . . . Impact . | . . . . . . . . . . . . . . Slashing . | . . . . . . . . . . . . . . Piercing . | . . . . . . . . . . . . . . Sneak Attacks . | . . . . . . . . . . . . . . Combat Hostiles . | . . . . . . . . . . . . . . Follow-up Attacks . | . . . . . . . . . . . . . . Damage Inflicted 5195 | 52 541 1035 1376 . . 222 . . . . 336 . 1633 Guns 1370 | 52 388 519 259 . . . . . . . . . 152 Cannons 963 | . . 157 484 . . 222 . . . . 100 . . Explosions 2862 | . 153 359 633 . . . . . . . 236 . 1481 Melee . | . . . . . . . . . . . . . . Ramming . | . . . . . . . . . . . . . . Kinetic 1766 | 52 388 676 650 . . . . . . . . . . Thermal 843 | . . . 93 . . 222 . . . . 100 . 428 Explosive 2586 | . 153 359 633 . . . . . . . 236 . 1205 Electromagnetic . | . . . . . . . . . . . . . . Impact . | . . . . . . . . . . . . . . Slashing . | . . . . . . . . . . . . . . Piercing . | . . . . . . . . . . . . . . Highest Corruption 3 | . . . . . . . . . . . . . 3 Average Corruption 1 | . . . . . . . . . . . . . 1 Corruption Purged . | . . . . . . . . . . . . . . Corruption Blocked . | . . . . . . . . . . . . . . Effects 1 | . . . . . . . . . . . . . 1 Heat Flow Errors 1 | . . . . . . . . . . . . . 1 Overload Shots 1 | . . . . . . . . . . . 1 . . Overflow Damage 209 | . 13 . 42 . . . . . . . 99 . 55 Projectiles 70 | . . . 10 . . . . . . . 60 . . Explosions 139 | . 13 . 32 . . . . . . . 39 . 55 Melee . | . . . . . . . . . . . . . . Knockbacks 8 | . . 3 5 . . . . . . . . . . Impact . | . . . . . . . . . . . . . . Kinetic 8 | . . 3 5 . . . . . . . . . . Secondary . | . . . . . . . . . . . . . . Self-Inflicted Damage 231 | . . 42 56 . . . . . . . 50 . 83 Shots 8 | . . 3 3 . . . . . . . 1 . 1 Rammed . | . . . . . . . . . . . . . . Targets Rammed . | . . . . . . . . . . . . . . Kicked . | . . . . . . . . . . . . . . Crushed . | . . . . . . . . . . . . . . Highest Temperature 213 | . 24 . 30 . . 35 . . 108 72 45 . 213 Average Temperature 34 | . 5 . 12 . . 14 . . 47 25 24 . 120 Received Heat Transfer 669 | . 117 60 342 . . 87 . . . . . 27 36 Siege Activations . | . . . . . . . . . . . . . . Robots Corrupted . | . . . . . . . . . . . . . . Combat Hostiles . | . . . . . . . . . . . . . . Parts Fried . | . . . . . . . . . . . . . . Impact Corruptions . | . . . . . . . . . . . . . . Robots Melted . | . . . . . . . . . . . . . . Combat Hostiles . | . . . . . . . . . . . . . . Parts Melted . | . . . . . . . . . . . . . . Heat Transferred 235 | . . . . . . . . . . . . . 235 Parts Sabotaged . | . . . . . . . . . . . . . . Parts Stolen . | . . . . . . . . . . . . . . Parts Stripped . | . . . . . . . . . . . . . . Power Chain Reactions . | . . . . . . . . . . . . . . Alert | -11 -10 -10 -8 -7 -7 -6 -5 -5 -4 -3 -3 -2 -1 ------- Run | Yrd Mat Sub Mat Fac DSF Fac Fac DSF Fac Res DSF Res Acc Peak Influence 717 | 5 274 . 358 107 74 372 182 128 56 59 160 203 717 Initial 182 | . 3 . . 100 74 38 182 128 56 29 45 90 . Average 132 | . 104 . 229 105 74 196 182 123 56 41 128 126 115 Maximum Alert Level 3 | . 1 . 1 . . 1 . . . . . 1 3 Low Security (%) 76 | 100 85 . 22 100 100 48 100 100 100 100 100 98 76 Level 1 21 | . 14 . 77 . . 51 . . . . . 1 13 Level 2 1 | . . . . . . . . . . . . . 8 Level 3 . | . . . . . . . . . . . . . 1 Level 4 . | . . . . . . . . . . . . . . Level 5 . | . . . . . . . . . . . . . . High Security . | . . . . . . . . . . . . . . Max Security . | . . . . . . . . . . . . . . Squads Dispatched 11 | . 2 . 1 . . 4 . . . . 1 . 3 Investigation 2 | . 1 . . . . 1 . . . . . . . Extermination 1 | . . . . . . . . . . . . . 1 Reinforcement 8 | . 1 . 1 . . 3 . . . . 1 . 2 Assault . | . . . . . . . . . . . . . . Garrison . | . . . . . . . . . . . . . . Intercept . | . . . . . . . . . . . . . . Searches Triggered . | . . . . . . . . . . . . . . Construction Impeded 1 | . . . 1 . . . . . . . . . . Haulers Reinforced 1 | . . . . . . 1 . . . . . . . Active Scanning Responses . | . . . . . . . . . . . . . . Cargo Convoy Interrupts . | . . . . . . . . . . . . . . Stealth | -11 -10 -10 -8 -7 -7 -6 -5 -5 -4 -3 -3 -2 -1 --------- Run | Yrd Mat Sub Mat Fac DSF Fac Fac DSF Fac Res DSF Res Acc Distress Signals 2 | . 1 . . . . . . . . . . . 1 Communications Jammed 11 | . . . . . . . . . . . . . 11 Distress Signals 11 | . . . . . . . . . . . . . 11 Times Spotted 111 | . 10 12 23 . 1 15 . 2 . 2 4 6 36 Peak Tracking Total 12 | . 4 3 6 . 1 8 . 2 . 1 3 6 12 Tactical Retreats 15 | . . 1 2 . . 3 . . . 1 1 . 7 Traps | -11 -10 -10 -8 -7 -7 -6 -5 -5 -4 -3 -3 -2 -1 ------- Run | Yrd Mat Sub Mat Fac DSF Fac Fac DSF Fac Res DSF Res Acc Traps Triggered 7 | . 1 . . . 1 1 . . . . 1 3 . Indirectly . | . . . . . . . . . . . . . . Trap Hack Attempts . | . . . . . . . . . . . . . . Triggered . | . . . . . . . . . . . . . . Disarmed . | . . . . . . . . . . . . . . Reprogrammed . | . . . . . . . . . . . . . . Reused . | . . . . . . . . . . . . . . Traps Extracted . | . . . . . . . . . . . . . . Installed . | . . . . . . . . . . . . . . Triggered . | . . . . . . . . . . . . . . Machines | -11 -10 -10 -8 -7 -7 -6 -5 -5 -4 -3 -3 -2 -1 ---------- Run | Yrd Mat Sub Mat Fac DSF Fac Fac DSF Fac Res DSF Res Acc Machines Disabled 7 | . 1 1 2 . . . . . . . . . 3 Max in Single Turn 1 | . 1 1 1 . . . . . . . . . 1 Garrison Access 1 | . . . . . . . . . . . . . 1 Energy Cycler 1 | . . . . . . . . . . . . . 1 Machines Repaired . | . . . . . . . . . . . . . . Machines Dismantled . | . . . . . . . . . . . . . . Machines Sabotaged . | . . . . . . . . . . . . . . Overloaded Fab Kills . | . . . . . . . . . . . . . . Hacking | -11 -10 -10 -8 -7 -7 -6 -5 -5 -4 -3 -3 -2 -1 --------- Run | Yrd Mat Sub Mat Fac DSF Fac Fac DSF Fac Res DSF Res Acc Machines Accessed 23 | . 2 2 . 2 . 3 1 . 1 3 . 4 5 Terminals 17 | . 2 . . 2 . 2 1 . 1 3 . 3 3 Fabricators 1 | . . . . . . . . . . . . . 1 Repair Stations 1 | . . . . . . . . . . . . 1 . Recycling Units . | . . . . . . . . . . . . . . Scanalyzers 1 | . . . . . . 1 . . . . . . . Garrison Access 1 | . . . . . . . . . . . . . 1 Total Hacks 41 | . 6 5 . 6 . 4 1 . 1 7 . 5 6 Successful 34 | . 4 5 . 5 . 3 1 . 1 6 . 4 5 Failed 7 | . 2 . . 1 . 1 . . . 1 . 1 1 Catastrophic . | . . . . . . . . . . . . . . Database Lockouts . | . . . . . . . . . . . . . . Manual 26 | . 7 1 . 5 . 2 . . 1 5 . 2 3 Terminals 32 | . 6 . . 6 . 3 1 . 1 7 . 4 4 Fabricators 1 | . . . . . . . . . . . . . 1 Repair Stations 1 | . . . . . . . . . . . . 1 . Recycling Units . | . . . . . . . . . . . . . . Scanalyzers 1 | . . . . . . 1 . . . . . . . Garrison Access 1 | . . . . . . . . . . . . . 1 Terminal Hacks 16 | . 1 5 . 1 . 1 1 . . 2 . 3 2 Record 5 | . 1 4 . . . . . . . . . . . Open DSF 5 | . . . . 1 . 1 1 . . 1 . 1 . Level Access Points 2 | . . . . . . . . . . . . 1 1 Alert Level 1 | . . . . . . . . . . . . 1 . Recall Reinforcements 1 | . . . . . . . . . . . . . 1 Hauler Manifests 1 | . . . . . . . . . . 1 . . . Derelict Proto ID Bank 1 | . . 1 . . . . . . . . . . . Fabricator Hacks . | . . . . . . . . . . . . . . Repair Station Hacks . | . . . . . . . . . . . . . . Recycling Unit Hacks . | . . . . . . . . . . . . . . Scanalyzer . | . . . . . . . . . . . . . . Garrison Access Hacks 1 | . . . . . . . . . . . . . 1 Seal Access 1 | . . . . . . . . . . . . . 1 Unauthorized Hacks 17 | . 3 . . 4 . 2 . . 1 4 . 1 2 Terminals 14 | . 3 . . 4 . 1 . . 1 4 . . 1 Track 2 | . 1 . . 1 . . . . . . . . . Assimilate 1 | . . . . . . . . . . 1 . . . Botnet 6 | . 1 . . 1 . 1 . . 1 2 . . . Disrupt 2 | . . . . 1 . . . . . . . . 1 Operators 3 | . 1 . . 1 . . . . . 1 . . . Fabricators 1 | . . . . . . . . . . . . . 1 Liberate 1 | . . . . . . . . . . . . . 1 Repair Stations 1 | . . . . . . . . . . . . 1 . Mechanics 1 | . . . . . . . . . . . . 1 . Recycling Units . | . . . . . . . . . . . . . . Scanalyzers 1 | . . . . . . 1 . . . . . . . Extract 1 | . . . . . . 1 . . . . . . . Garrison Access . | . . . . . . . . . . . . . . Data Cores Recovered 1 | . . . 1 . . . . . . . . . . Used . | . . . . . . . . . . . . . . Hacking Detections 13 | . 1 . . 2 . 1 1 . 1 1 . 2 4 Full Trace Events . | . . . . . . . . . . . . . . Feedback Events . | . . . . . . . . . . . . . . Feedback Blocked . | . . . . . . . . . . . . . . Robot Schematics Acquired . | . . . . . . . . . . . . . . Robots Built . | . . . . . . . . . . . . . . Authchips . | . . . . . . . . . . . . . . Time . | . . . . . . . . . . . . . . Total Robot Build Rating . | . . . . . . . . . . . . . . Part Schematics Acquired 2 | . . . . . . 2 . . . . . . . Parts Built . | . . . . . . . . . . . . . . Authchips . | . . . . . . . . . . . . . . Time . | . . . . . . . . . . . . . . Total Part Build Rating . | . . . . . . . . . . . . . . Parts Repaired . | . . . . . . . . . . . . . . Time . | . . . . . . . . . . . . . . Parts Recycled . | . . . . . . . . . . . . . . Recycled Matter . | . . . . . . . . . . . . . . Retrieved Matter . | . . . . . . . . . . . . . . Retrieved Components . | . . . . . . . . . . . . . . Parts Scanalyzed . | . . . . . . . . . . . . . . Part Schematics Acquired . | . . . . . . . . . . . . . . Parts Damaged . | . . . . . . . . . . . . . . Bothacking | -11 -10 -10 -8 -7 -7 -6 -5 -5 -4 -3 -3 -2 -1 ------------ Run | Yrd Mat Sub Mat Fac DSF Fac Fac DSF Fac Res DSF Res Acc Used RIF Installer . | . . . . . . . . . . . . . . Robots Hacked . | . . . . . . . . . . . . . . Non-combat . | . . . . . . . . . . . . . . Combat . | . . . . . . . . . . . . . . Robot Hacks Applied . | . . . . . . . . . . . . . . Relay Couplers Released . | . . . . . . . . . . . . . . Fabnet Peak Effective % . | . . . . . . . . . . . . . . Robots Rewired . | . . . . . . . . . . . . . . Allies Hacked . | . . . . . . . . . . . . . . Hacks Repelled . | . . . . . . . . . . . . . . Allies | -11 -10 -10 -8 -7 -7 -6 -5 -5 -4 -3 -3 -2 -1 -------- Run | Yrd Mat Sub Mat Fac DSF Fac Fac DSF Fac Res DSF Res Acc Total Allies . | . . . . . . . . . . . . . . Largest Group . | . . . . . . . . . . . . . . Highest-Rated Group . | . . . . . . . . . . . . . . Highest-Rated Ally . | . . . . . . . . . . . . . . Total Orders . | . . . . . . . . . . . . . . Ally Attacks . | . . . . . . . . . . . . . . Total Damage . | . . . . . . . . . . . . . . Kills . | . . . . . . . . . . . . . . Allies Corrupted . | . . . . . . . . . . . . . . Allies Melted . | . . . . . . . . . . . . . . Intel | -11 -10 -10 -8 -7 -7 -6 -5 -5 -4 -3 -3 -2 -1 ------- Run | Yrd Mat Sub Mat Fac DSF Fac Fac DSF Fac Res DSF Res Acc Robot Analysis Total . | . . . . . . . . . . . . . . Derelict Logs Recovered 2 | . . 2 . . . . . . . . . . . Drone Launches . | . . . . . . . . . . . . . . Drone Recoveries . | . . . . . . . . . . . . . . Exploration | -11 -10 -10 -8 -7 -7 -6 -5 -5 -4 -3 -3 -2 -1 ------------- Run | Yrd Mat Sub Mat Fac DSF Fac Fac DSF Fac Res DSF Res Acc Turns Passed 5415 | 62 708 2105 448 19 38 297 184 58 97 211 74 402 712 Spaces Moved 5029 | 45 273 1279 240 41 82 620 426 74 137 300 67 606 839 Core 8 | 1 . . 7 . . . . . . . . . . Treads 1160 | . . 1098 62 . . . . . . . . . . Legs . | . . . . . . . . . . . . . . Wheels 498 | 44 273 181 . . . . . . . . . . . Hover . | . . . . . . . . . . . . . . Flight 3363 | . . . 171 41 82 620 426 74 137 300 67 606 839 Fastest Speed 28 | 50 80 95 40 34 34 34 28 31 31 31 28 34 31 Average Speed 73 | 79 93 150 131 37 34 40 40 38 31 31 30 34 33 Slowest Speed 595 | 80 95 160 595 40 34 44 42 42 31 31 34 34 100 Overloaded Moves . | . . . . . . . . . . . . . . Propulsion Burnouts . | . . . . . . . . . . . . . . Robots Hopped 21 | . . . . . . 9 . . 2 3 . 3 4 Cave-ins Triggered . | . . . . . . . . . . . . . . Exploration Rate (%) 31 | 3 50 61 35 2 87 23 9 84 5 7 49 14 18 Regions Visited 13 Branch Regions 1 Pre-discovered Areas 1 | . . 1 . . . . . . . . . . . Known Exits Taken 9 | . 1 1 1 1 . 1 1 . 1 1 . 1 . Unknown Exits Taken 1 | 1 . . . . . . . . . . . . . Scrap Searched 1 | . . 1 . . . . . . . . . . . Spaces Dug 8 | . . . . . . 3 . . . . . 5 . Terrain Destroyed 247 | . 9 27 34 . . 7 . . . . 24 5 141 Melee . | . . . . . . . . . . . . . . Projectile 16 | . . 1 2 . . 7 . . . . 1 5 . AOE 231 | . 9 26 32 . . . . . . . 23 . 141 Terrain Rammed . | . . . . . . . . . . . . . . Walls Destroyed . | . . . . . . . . . . . . . . Machines Disabled . | . . . . . . . . . . . . . . Actions | -11 -10 -10 -8 -7 -7 -6 -5 -5 -4 -3 -3 -2 -1 --------- Run | Yrd Mat Sub Mat Fac DSF Fac Fac DSF Fac Res DSF Res Acc Total 6513 | 60 662 1397 317 43 90 646 436 102 188 414 116 794 1248 Wait 1137 | . 345 57 30 . 3 17 . 21 48 107 19 124 366 Move 4975 | 44 272 1278 239 40 81 603 425 73 132 293 66 599 830 Hop 19 | . . . . . . 7 . . 2 3 . 3 4 Pick Up 31 | 6 3 6 3 1 2 2 . 2 1 1 2 1 1 Fast Attach 45 | 6 2 1 3 1 3 2 6 3 1 4 6 4 3 Attach 25 | . . 1 4 1 . 2 . . 2 1 1 . 13 Detach 17 | . . . 1 . . 1 1 . . 2 2 1 9 Swap 25 | . 4 11 4 . . . . . 1 . 2 . 3 Drop 40 | . 1 10 4 . 1 1 4 3 1 3 7 3 2 Fire 137 | 4 35 33 29 . . 11 . . . . 3 5 17 Melee . | . . . . . . . . . . . . . . Ram . | . . . . . . . . . . . . . . Kick . | . . . . . . . . . . . . . . Crush . | . . . . . . . . . . . . . . Escape Stasis 62 | . . . . . . . . . . . 8 54 . Rewire . | . . . . . . . . . . . . . . Trap . | . . . . . . . . . . . . . . Miscellaneous . | . . . . . . . . . . . . . . Route ------- -11/Scrapyard -10/Materials (discovered 4 exits: [*Mat x2] / *Min / *Sub) -10/Subcaves -8/Materials (discovered 2 exits: *Fac x2) -7/Factory -7/DSF -6/Factory (discovered 2 exits: *Fac / *Ext) -5/Factory -5/DSF -4/Factory -3/Research -3/DSF -2/Research (discovered 3 exits: *Acc x3) -1/Access To Epsilon Eridani History --------- Turn | Location | Event 7 | -11/Scrapyard | Discovered new exit (range 15) 63 | -11/Scrapyard | Entered Materials 291 | -10/Materials | Discovered new exit (range 11) 316 | -10/Materials | Build established: Mutant 337 | -10/Materials | Identified exit to Mines 371 | -10/Materials | Discovered new exit (range 13) 414 | -10/Materials | Discovered new exit (range 10) 739 | -10/Materials | Discovered new exit (range 6) 770 | -10/Materials | Identified exit to Subcaves 771 | -10/Materials | Entered Subcaves 812 | -10/Subcaves | Visited 4L-MR0's lab 907 | -10/Subcaves | Learned location of 1 exit from Materials 1228 | -10/Subcaves | Found Flightbrick 1340 | -10/Subcaves | Visited Clippyterm 1345 | -10/Subcaves | Learned Factory garrison access intel 1518 | -10/Subcaves | Shifting Twisted Machinery released Battle Cannon 1529 | -10/Subcaves | Shifting Twisted Machinery released Sub. Beam Cannon 1615 | -10/Subcaves | Ambushed by Subdwellers from Twisted Machinery 1730 | -10/Subcaves | Learned location of Zion (-6) 1741 | -10/Subcaves | A swath of the cavern ceiling suddenly collapsed 2781 | -10/Subcaves | A Subdweller sparked back to life 2781 | -10/Subcaves | A Subdweller sparked back to life 2781 | -10/Subcaves | A Subdweller sparked back to life 2801 | -10/Subcaves | Found Powered Cannon 2860 | -10/Subcaves | Discovered new exit (range 13) 2874 | -10/Subcaves | Identified exit to Materials 2876 | -10/Subcaves | Entered Materials 2876 | -8/Materials | Evolved 4 slots: Propulsion x2, Utility x2 2877 | -8/Materials | Identified exit to Factory 2959 | -8/Materials | Destroyed 7 combat bots 3217 | -8/Materials | Attached Flightbrick, gained temporary slots: Utility x3 3269 | -8/Materials | Attached Powered Cannon, gained temporary slot: Power 3303 | -8/Materials | Discovered exit to Factory (range 16) 3324 | -8/Materials | Entered Factory 3324 | -7/Factory | Evolved 2 slots: Propulsion x2 3325 | -7/Factory | Loaded intel: 4 garrison access locations 3343 | -7/Factory | Identified exit to DSF 3343 | -7/Factory | Entered DSF 3377 | -7/DSF | Discovered new exit (range 14) 3381 | -7/DSF | Identified exit to Factory 3381 | -7/DSF | Entered Factory 3381 | -6/Factory | Evolved 2 slots: Propulsion x2 3596 | -6/Factory | Discovered new exit (range 15) 3596 | -6/Factory | Spotted B-75 Beast 3601 | -6/Factory | Identified exit to Extension 3649 | -6/Factory | Build established: Hacker-Mutant 3673 | -6/Factory | Discovered new exit (range 12) 3677 | -6/Factory | Identified exit to Factory 3678 | -6/Factory | Entered another Factory area 3678 | -5/Factory | Evolved 2 slots: Utility x1, Weapon x1 3862 | -5/Factory | Identified exit to DSF 3862 | -5/Factory | Entered DSF 3911 | -5/DSF | Discovered new exit (range 15) 3916 | -5/DSF | Additional patrols routed to DSF 3919 | -5/DSF | Identified exit to Factory 3920 | -5/DSF | Entered Factory 3920 | -4/Factory | Evolved 2 slots: Utility x2 3986 | -4/Factory | Discovered new exit (range 12) 4017 | -4/Factory | Identified exit to Research 4017 | -4/Factory | Entered Research 4017 | -3/Research | Evolved 2 slots: Utility x2 4196 | -3/Research | Build established: Hacker-Sprinter 4228 | -3/Research | Identified exit to DSF 4228 | -3/Research | Entered DSF 4250 | -3/DSF | Discovered new exit (range 16) 4253 | -3/DSF | Additional patrols routed to DSF 4302 | -3/DSF | Identified exit to Research 4302 | -3/DSF | Entered Research 4302 | -2/Research | Evolved 2 slots: Power x1, Utility x1 4513 | -2/Research | Spotted B-90 Cyclops 4647 | -2/Research | Identified exit to Access 4663 | -2/Research | Build established: Wizard-Mutant 4704 | -2/Research | Entered Access 4704 | -1/Access | Evolved 1 slot: Propulsion x1 4709 | -1/Access | Identified exit to Surface 4723 | -1/Access | Found Fusion Bomb Launcher 5263 | -1/Access | Spotted B-99 Colossus 5263 | -1/Access | Spotted B-99 Colossus 5348 | -1/Access | Energy Cycler disabled 5362 | -1/Access | Lost 4 parts (2p1n1u) 5416 | *** | Escaped! Last Messages --------------- 05372_ Acquired 4 matter. 05373_ Acquired Lgt. Ion Engine. 05375_ Slug penetrates Wall. 05375_ Acquired 18 matter. 05379_ System corrupted: Heat flow error (+179). 05386_ Destroyed Com. Wheel. 05396_ Anti-Orbital Battery disabled. 05397_ S-43 Plague destroyed. 05398_ Dropped Hcp. Matter Pod. 05399_ Extracted 200 matter. 05399_ S-43 Plague destroyed. 05401_ Quantum Reactor destroyed. 05401_ W-44 Eye destroyed. 05401_ S-43 Plague destroyed. 05401_ Destroyed Xenon Bombardment Thruster. 05406_ Field Propulsion Array destroyed. 05412_ Lgt. Ion Engine destroyed. 05414_ The Access Shell folds into the floor. [Achievement: This Is Interesting...] [Achievement: Epsilon Run] Map ----- +----------------------------------------------------+ | ??????????? ?????????# + | | ??????????? ?????????# ################### | | ??????????? ?????????# #?????????????????? | | ??????????# ????????## ????????????????? | | ??????????# ???????? % ???????????????? | | ??????????# ???????? %[ ??????????????? | | ??????????# ???????? [ ??????#######?? | | ??????????# ######### %[ ######+## #?? | | ??????????# # % ### | | ??????????# # | | ??????????# # # =### | | ??????????# # ########## ### | | ??????????# # ! # #???????### ### | | ??????????# # ! # ##???????## ### | | ??????????# / # #??????### #"# | | ??????????# # # #??????# # | | ??????????# # #! ## #??????# # | | ??????????# ################### #??????# + | | ??????????# #?????### #### #??????# ### | | ??????????# ####### ##################### ##? | | ??????????# """T""" "??" " "# | | ??????????# p""" """ "??" % # % % "# | | ??????????# "??" " ## | | ??????????# "??" % % # | | ??????????# "" "??" %" | | ??????????# @" "??" "% | | ??????????# "??" # | | ??????????# "??" % "##"## # | | ??????????# "??" ###### #? | | ??????????# "??" #????# #? | | ??????????# ####### ##########??#########????# # | | ??????????# ??????###????????????????????????# # | | ??????????# ???????????????????????????????### "# | | ??????????# ????????????????????????######## | | ??????????# ????????????????????????# ! | | ??????????# ?############???????????# % | | ??????????# ? ???????????# [ | | ??????????# ?? ######?????# % "# | | ???????????????? # #????# ####### | | ???????????????? # #????# ## """ | | ????????????????""" # #????# ##""T"" | | ??????????????? """ # ###### ##"" "" | | ??????????????? """ # # | | ?????????????#? "S # # | | ?????????????# "" # # | | ?????????????# "" # + | | ?????????????# + # | | ?????????????# # ! # | | ?????????????### ###+# =# | | ?????????????# %[ % # # ##"### " | +----------------------------------------------------+ Best States ------------- Heat Dissipation 52 Energy Generation 45 Energy Capacity 600 Matter Stores 300 Matter Capacity 300 Sight Range 16 Robot Scan Range 16 Terrain Scan Density 10 ECM Strength 2 Jamming Range 14 Base Temperature (-) 200 Evasion (%) 75 Targeting Accuracy 6 Recoil Reduction 2 Offensive Hacking 66 Defensive Hacking 10 Item Schematics ----------------- Com. Battery | -6/Factory | Extracted ECM Suite | -6/Factory | Extracted Robot Schematics ------------------ None Fabricated ------------ Nothing Alien Tech Used ----------------- None Achievements -------------- Denied? Epsilon Run This Is Interesting... Total Silence Challenges ------------ None Game ------ Seed LightReinforcedVibroblade Manual? 0 Play Time 01:59:29 Cumulative 54.5 hours Start 2024.04.28 @ 22:35:20 End 2024.04.29 @ 01:14:33 Sessions 1 Manual Loads 0 Difficulty Rogue Special Mode None Game No. 51 Rogue 39 Adventurer 12 Explorer 0 Win Type 0 Total 1 Types 1/0/0/0/0/0/0/0/0 Lore% 25 Gallery% 41 Achievement% 33 Wizard Run 0 Options --------- Layout 2 ASCII 0 Keyboard 0 Movement Numpad Keybinds 0 Fullscreen 1 Font 24/Smallcaps Map View 50x44 Zoom Use 12% Tactical HUD 1 Map Filters NONE Filters NONE Steam 1 RUN: 5b39263b-4a37-4228-a9d3-742acce85105